fUST/lending_fUST_20260425
["ID","MTS","AMOUNT","RATE_DAILY","PERIOD"]
[421104768,1777050640435,-152.0,0.00014596,7]
[421104769,1777050640444,-152.0,0.00014596,7]
[421104770,1777050640454,-151.0,0.000146,2]
[421104771,1777050640463,-151.0,0.000146,2]
[421104772,1777050640472,-151.0,0.000146,2]
[421104773,1777050640482,-151.0,0.000146,2]
[421104774,1777050640491,-151.0,0.000146,2]
[421104775,1777050640501,-151.0,0.000146,2]
[421104776,1777050640511,-151.0,0.000146,2]
[421104777,1777050640520,-151.0,0.000146,2]
[421104778,1777050640530,-151.0,0.000146,2]
[421104779,1777050640540,-151.0,0.000146,2]
[421104780,1777050640549,-151.0,0.000146,2]
[421104781,1777050640559,-151.0,0.000146,2]
[421104782,1777050640928,-151.0,0.000146,2]
[421104783,1777050640948,-151.0,0.000146,2]
[421104784,1777050640963,-151.0,0.000146,2]
[421104785,1777050640973,-151.0,0.000146,2]
[421104786,1777050640982,-151.0,0.000146,2]
[421104787,1777050640992,-151.0,0.000146,2]
[421104788,1777050641002,-151.0,0.000146,2]
[421104790,1777050641012,-151.0,0.000146,2]
[421104792,1777050641021,-151.0,0.000146,2]
[421104794,1777050641031,-151.0,0.000146,2]
[421104795,1777050641041,-151.0,0.000146,2]
[421104796,1777050641050,-198.161828,0.000146,2]
[421104797,1777050641060,-167.191274,0.000146,2]
[421104798,1777050641069,-167.191274,0.000146,2]
[421104799,1777050641079,-167.191274,0.000146,2]
[421104800,1777050641088,-167.191274,0.000146,2]
[421104801,1777050641097,-275.200452,0.000146,2]
[421104802,1777050641106,-275.200452,0.000146,2]
[421104803,1777050641116,-275.200452,0.000146,2]
[421104804,1777050641126,-275.200452,0.000146,2]
[421104805,1777050641135,-152.0,0.0001461,7]
[421104806,1777050641144,-152.0,0.0001461,7]
[421104807,1777050641153,-1047.13,0.0001462,2]
[421104808,1777050641163,-845.45,0.0001462,2]
[421104809,1777050641172,-581.97,0.00014621,2]
[421104810,1777050641182,-581.97,0.00014621,2]
[421104811,1777050641191,-2553.65,0.00014621,2]
[421104812,1777050641201,-2553.65,0.00014621,2]
[421104813,1777050641210,-500.0,0.00014621,2]
[421104814,1777050641219,-500.0,0.00014621,2]
[421104815,1777050641229,-500.0,0.00014621,2]
[421104816,1777050641239,-500.0,0.00014621,2]
[421104817,1777050641248,-1929.2,0.00014621,2]
[421104818,1777050641259,-1929.2,0.00014621,2]
[421104819,1777050641268,-151.0,0.00014621,2]
[421104821,1777050641281,-151.0,0.00014621,2]
[421104822,1777050641290,-151.0,0.00014621,2]
[421104823,1777050641299,-151.0,0.00014621,2]
[421104825,1777050641308,-293.973311,0.00014621,2]
[421104826,1777050641319,-1047.13,0.00014621,2]
[421104827,1777050641328,-1047.13,0.00014621,2]
[421104828,1777050641337,-845.45,0.00014621,2]
[421104829,1777050641347,-845.45,0.00014621,2]
[421104830,1777050641356,-500.0,0.00014621,2]
[421104831,1777050641366,-500.0,0.00014621,2]
[421104832,1777050641376,-764.8,0.00014621,2]
[421104833,1777050641385,-764.8,0.00014621,2]
[421104834,1777050641395,-581.97,0.00014622,2]
[421104835,1777050641404,-581.97,0.00014622,2]
[421104836,1777050641414,-581.97,0.00014622,2]
[421104837,1777050641424,-581.97,0.00014622,2]
[421104838,1777050641434,-581.97,0.00014622,2]
[421104839,1777050641444,-581.97,0.00014622,2]
[421104840,1777050641453,-581.97,0.00014622,2]
[421104841,1777050641463,-581.97,0.00014622,2]
[421104842,1777050641473,-581.97,0.00014622,2]
[421104843,1777050641483,-581.97,0.00014622,2]
[421104844,1777050641492,-581.97,0.00014622,2]
[421104845,1777050641503,-581.97,0.00014622,2]
[421104846,1777050641512,-581.97,0.00014622,2]
[421104847,1777050641522,-581.97,0.00014622,2]
[421104848,1777050641532,-581.97,0.00014622,2]
[421104849,1777050641542,-581.97,0.00014622,2]
[421104850,1777050641551,-581.97,0.00014622,2]
[421104851,1777050641560,-582.09889316,0.00014622,2]
[421104852,1777050641570,-2553.65,0.00014622,2]
[421104853,1777050641580,-2553.65,0.00014622,2]
[421104854,1777050641589,-2553.65,0.00014622,2]
[421104855,1777050641598,-2553.65,0.00014622,2]
[421104856,1777050641608,-2553.65,0.00014622,2]
[421104857,1777050641617,-2553.65,0.00014622,2]
[421104858,1777050641627,-2553.65,0.00014622,2]
[421104859,1777050641636,-2553.65,0.00014622,2]
[421104860,1777050641645,-2553.65,0.00014622,2]
[421104861,1777050641655,-2553.65,0.00014622,2]
[421104862,1777050641664,-2553.65,0.00014622,2]
[421104863,1777050641676,-2553.65,0.00014622,2]
[421104864,1777050641686,-2553.65,0.00014622,2]
[421104865,1777050641695,-2553.65,0.00014622,2]
[421104866,1777050641705,-2553.65,0.00014622,2]
[421104867,1777050641715,-2553.65,0.00014622,2]
[421104868,1777050641724,-2553.65,0.00014622,2]
[421104869,1777050641733,-2553.87668392,0.00014622,2]
[421104870,1777050641742,-500.0,0.00014622,2]
[421104871,1777050641752,-500.0,0.00014622,2]
[421104872,1777050641762,-263.54,0.00014622,2]
[421104873,1777050641771,-500.0,0.00014622,2]
[421104874,1777050641780,-500.0,0.00014622,2]
[421104875,1777050641788,-500.0,0.00014622,2]
[421104876,1777050641797,-500.0,0.00014622,2]
[421104877,1777050641806,-500.0,0.00014622,2]
[421104878,1777050641815,-1929.2,0.00014622,2]
[421104879,1777050641824,-500.0,0.00014622,2]
[421104880,1777050641834,-1929.2,0.00014622,2]
[421104881,1777050641843,-500.0,0.00014622,2]
[421104882,1777050641852,-1929.2,0.00014622,2]
[421104883,1777050641861,-500.0,0.00014622,2]
[421104884,1777050641870,-1929.2,0.00014622,2]
[421104885,1777050641879,-487.97872987,0.00014622,2]
[421104886,1777050641889,-1929.2,0.00014622,2]
[421104887,1777050641898,-1929.2,0.00014622,2]
[421104888,1777050641907,-1929.2,0.00014622,2]
[421104889,1777050641917,-1929.2,0.00014622,2]
[421104890,1777050641926,-1929.2,0.00014622,2]
[421104891,1777050641936,-1929.2,0.00014622,2]
[421104892,1777050641945,-1929.2,0.00014622,2]
[421104893,1777050641955,-1929.2,0.00014622,2]
[421104894,1777050641964,-1929.2,0.00014622,2]
[421104895,1777050641974,-1929.2,0.00014622,2]
[421104896,1777050641983,-1929.2,0.00014622,2]
[421104897,1777050641992,-1929.2,0.00014622,2]
[421104898,1777050642001,-1929.2,0.00014622,2]
[421104899,1777050642010,-1929.27660358,0.00014622,2]
[421104900,1777050642019,-151.0,0.00014622,2]
[421104901,1777050642029,-151.0,0.00014622,2]
[421104902,1777050642038,-151.0,0.00014622,2]
[421104903,1777050642047,-151.0,0.00014622,2]
[421104904,1777050642056,-151.0,0.00014622,2]
[421104905,1777050642066,-151.0,0.00014622,2]
[421104906,1777050642075,-151.0,0.00014622,2]
[421104907,1777050642085,-151.0,0.00014622,2]
[421104908,1777050642094,-268.388817,0.00014622,2]
[421104909,1777050642104,-212.961026,0.00014622,2]
[421104910,1777050642114,-500.0,0.00014622,2]
[421104911,1777050642123,-500.0,0.00014622,2]
[421104912,1777050642132,-500.0,0.00014622,2]
[421104913,1777050642142,-500.0,0.00014622,2]
[421104914,1777050642151,-500.0,0.00014622,2]
[421104915,1777050642161,-500.0,0.00014622,2]
[421104916,1777050642171,-155.00493098,0.00014622,2]
[421104917,1777050642181,-151.0,0.00014622,2]
[421104918,1777050642190,-151.0,0.00014622,2]
[421104919,1777050642200,-151.0,0.00014622,2]
[421104920,1777050642210,-151.0,0.00014622,2]
[421104921,1777050642220,-151.0,0.00014622,2]
[421104922,1777050642229,-151.0,0.00014622,2]
[421104923,1777050642239,-208.651688,0.00014622,2]
[421104924,1777050642249,-167.191274,0.00014622,2]
[421104925,1777050642258,-167.191274,0.00014622,2]
[421104926,1777050642267,-167.191274,0.00014622,2]
[421104927,1777050642276,-167.191274,0.00014622,2]
[421104928,1777050642286,-167.191274,0.00014622,2]
[421104929,1777050642295,-167.191274,0.00014622,2]
[421104930,1777050642305,-167.191274,0.00014622,2]
[421104931,1777050642314,-167.191274,0.00014622,2]
[421104932,1777050642323,-167.191274,0.00014622,2]
[421104933,1777050642333,-167.191274,0.00014622,2]
[421104934,1777050642342,-167.191274,0.00014622,2]
[421104935,1777050642353,-167.191275,0.00014622,2]
[421104936,1777050642362,-275.200452,0.00014622,2]
[421104937,1777050642372,-275.200452,0.00014622,2]
[421104938,1777050642381,-275.200452,0.00014622,2]
[421104939,1777050642390,-275.200452,0.00014622,2]
[421104940,1777050642400,-275.200452,0.00014622,2]
[421104941,1777050642409,-275.200452,0.00014622,2]
[421104942,1777050642419,-275.200452,0.00014622,2]
[421104943,1777050642428,-275.200452,0.00014622,2]
[421104944,1777050642438,-275.200452,0.00014622,2]
[421104945,1777050642448,-275.200452,0.00014622,2]
[421104946,1777050642457,-275.200452,0.00014622,2]
[421104948,1777050642466,-275.200453,0.00014622,2]
[421104950,1777050642476,-764.8,0.00014622,2]
[421104952,1777050642485,-764.8,0.00014622,2]
[421104954,1777050642495,-764.8,0.00014622,2]
[421104955,1777050642504,-764.8,0.00014622,2]
[421104956,1777050642513,-764.8,0.00014622,2]
[421104957,1777050642522,-764.8,0.00014622,2]
[421104958,1777050642532,-764.8,0.00014622,2]
[421104959,1777050642542,-764.8,0.00014622,2]
[421104960,1777050642551,-764.8,0.00014622,2]
[421104961,1777050642560,-764.8,0.00014622,2]
[421104962,1777050642569,-764.8,0.00014622,2]
[421104963,1777050642579,-764.8,0.00014622,2]
[421104964,1777050642589,-764.8,0.00014622,2]
[421104966,1777050642598,-764.8,0.00014622,2]
[421104967,1777050642608,-764.8,0.00014622,2]
[421104969,1777050642617,-764.8,0.00014622,2]
[421104970,1777050642626,-764.8,0.00014622,2]
[421104972,1777050642635,-764.91625566,0.00014622,2]
[421104973,1777050642645,-151.0,0.00014623,2]
[421104975,1777050642654,-151.0,0.00014623,2]
[421104976,1777050642664,-151.0,0.00014623,2]
[421104977,1777050642673,-255.581624,0.00014623,2]
[421104979,1777050642682,-152.0,0.00014641,7]
[421104981,1777050642691,-196.41,0.00014656,2]
[421104982,1777050642701,-1047.13,0.0001471,2]
[421104983,1777050642710,-1047.13,0.0001471,2]
[421104985,1777050642719,-845.45,0.0001471,2]
[421104987,1777050642729,-845.45,0.0001471,2]
[421104989,1777050642738,-35107.4046131,0.00014711,2]
[421104990,1777050642748,-13704.8257748,0.00014711,2]
[421104991,1777050642757,-1047.13,0.00014718,2]
[421104993,1777050642766,-1047.13,0.00014718,2]
[421104994,1777050642776,-845.45,0.00014718,2]
[421104996,1777050642784,-845.45,0.00014718,2]
[421104998,1777050642794,-26342.6832678,0.00014719,2]
[421104999,1777050642804,-274.9024426,0.00014719,2]
[421105000,1777050642813,-1756.3547216,0.00014719,2]
[421105001,1777050642822,-500.0,0.00014722,2]
[421105002,1777050642831,-500.0,0.00014722,2]
[421105003,1777050642840,-500.0,0.00014722,2]
[421105004,1777050642850,-500.0,0.00014722,2]
[421105005,1777050642859,-500.0,0.00014722,2]
[421105006,1777050642868,-1047.13,0.00014723,2]
[421105007,1777050642877,-1047.13,0.00014723,2]
[421105008,1777050642887,-845.45,0.00014723,2]
[421105009,1777050642896,-845.45,0.00014723,2]
[421105010,1777050642906,-151.0,0.00014724,2]
[421105011,1777050642923,-151.0,0.00014724,2]
[421105012,1777050642937,-151.0,0.00014724,2]
[421105013,1777050642947,-151.0,0.00014724,2]
[421105014,1777050642957,-151.0,0.00014724,2]
[421105015,1777050642967,-151.0,0.00014724,2]
[421105016,1777050642977,-500.0,0.00014724,2]
[421105017,1777050642987,-500.0,0.00014724,2]
[421105018,1777050642996,-500.0,0.00014724,2]
[421105019,1777050643007,-500.0,0.00014724,2]
[421105020,1777050643017,-500.0,0.00014724,2]
[421105021,1777050643027,-500.0,0.00014724,2]
[421105022,1777050643038,-500.0,0.00014724,2]
[421105023,1777050643048,-500.0,0.00014724,2]
[421105024,1777050643059,-500.0,0.00014724,2]
[421105025,1777050643069,-500.0,0.00014724,2]
[421105027,1777050643080,-500.0,0.00014724,2]
[421105029,1777050643090,-500.0,0.00014724,2]
[421105031,1777050643101,-500.0,0.00014724,2]
[421105033,1777050643112,-500.0,0.00014724,2]
[421105035,1777050643122,-500.0,0.00014724,2]
[421105037,1777050643132,-336.78476045,0.00014724,2]
[421105039,1777050643142,-258.48,0.00014741,2]
[421105041,1777050643153,-1020.86122621,0.00014875,2]
[421105043,1777050643164,-1000.0,0.00014932,2]
[421105045,1777050643174,-244.0,0.00014932,2]
[421105047,1777050643186,-180.60413307,0.0001497,2]
[421105050,1777050643197,-1047.13,0.0001502,2]
[421105052,1777050643207,-845.45,0.0001502,2]
[421105054,1777050643217,-982.086906,0.00015021,2]
[421105056,1777050643227,-151.0,0.00015021,2]
[421105058,1777050643237,-151.0,0.00015021,2]
[421105060,1777050643247,-151.0,0.00015021,2]
[421105061,1777050643256,-1000.0,0.00015025,2]
[421105063,1777050643267,-1000.0,0.00015025,2]
[421105066,1777050643277,-667.42656494,0.00015025,2]
[421105068,1777050643287,-1000.0,0.00015025,2]
[421105070,1777050643297,-1000.0,0.00015025,2]
[421105072,1777050643307,-1000.0,0.00015025,2]
[421105074,1777050643317,-1000.0,0.00015025,2]
[421105076,1777050643327,-1003.55326239,0.00015025,2]
[421105078,1777050643337,-180.71324674,0.00015025,2]
[421105080,1777050643347,-151.0,0.00015025,2]
[421105082,1777050643357,-151.0,0.00015025,2]
[421105083,1777050643366,-151.0,0.00015025,2]
[421105084,1777050643376,-151.0,0.00015025,2]
[421105085,1777050643386,-151.0,0.00015025,2]
[421105086,1777050643396,-151.0,0.00015025,2]
[421105087,1777050643406,-153.63208545,0.00015025,2]
[421105088,1777050643416,-334.35375405,0.00015797,2]
[421105089,1777050643425,-160.0,0.00015807,2]
[421105090,1777050643435,-1258.471398,0.00015807,2]
[421105091,1777050643446,-2356.942796,0.00015807,2]
[421105092,1777050643456,-1047.13,0.00015848,2]
[421105093,1777050643465,-845.45,0.00015848,2]
[421105094,1777050643475,-212.850087,0.0001587,2]
[421105095,1777050643485,-5000.0,0.00015918,2]
[421105096,1777050643494,-3000.0,0.00016,2]
[421105097,1777050643504,-3000.0,0.0001601,2]
[421105098,1777050643515,-151.0,0.0001601,2]
[421105099,1777050643525,-151.0,0.0001601,2]
[421105100,1777050643535,-151.0,0.0001601,2]
[421105101,1777050643545,-3000.0,0.0001602,2]
[421105102,1777050643555,-3000.0,0.0001603,2]
[421105103,1777050643564,-1047.13,0.00016039,2]
[421105104,1777050643574,-845.45,0.00016039,2]
[421105105,1777050643584,-2334.88706499,0.0001604,2]
[421105106,1777050643902,-665.11293501,0.0001604,2]
[421105107,1777050643912,-1339.39569811,0.0001605,2]
[421105108,1777050643924,-1660.60430189,0.0001605,2]
[421105109,1777050643933,-3000.0,0.0001606,2]
[421105110,1777050643943,-3000.0,0.0001607,2]
[421105111,1777050643952,-1733.33827208,0.0001608,2]
[421105112,1777050643964,-1266.66172792,0.0001608,2]
[421105113,1777050643973,-1135.18361807,0.00016082,2]
[421105114,1777050643983,-3000.0,0.0001609,2]
[421105115,1777050643993,-1047.13,0.00016099,2]
[421105116,1777050644003,-1047.13,0.00016099,2]
[421105117,1777050644012,-1047.13,0.00016099,2]
[421105118,1777050644022,-1047.13,0.00016099,2]
[421105119,1777050644031,-1047.32441047,0.00016099,2]
[421105120,1777050644240,-845.45,0.00016099,2]
[421105121,1777050644250,-845.45,0.00016099,2]
[421105122,1777050644261,-845.45,0.00016099,2]
[421105123,1777050644271,-845.45,0.00016099,2]
[421105124,1777050644280,-845.5181015,0.00016099,2]
[421105125,1777050644290,-3000.0,0.000161,2]
[421105126,1777050644300,-3000.0,0.0001611,2]
[421105127,1777050644310,-3000.0,0.0001612,2]
[421105128,1777050644319,-3000.0,0.0001613,2]
[421105129,1777050644328,-3461.132768,0.0001614,2]
[421105130,1777050644338,-5000.0,0.00016192,2]
[421105131,1777050644347,-7965.41787855,0.00016194,2]
[421105132,1777050644357,-1756.3547216,0.00016323,2]
[421105133,1777050644366,-160.0,0.00016378,2]
[421105134,1777050644375,-220.882164,0.00016378,2]
[421105135,1777050644384,-281.764329,0.00016378,2]
[421105136,1777050644394,-1000.0,0.00016426,2]
[421105137,1777050644403,-492.0,0.00016426,2]
[421105138,1777050644413,-706.88,0.00016438,2]
[421105139,1777050644423,-743.2,0.00016438,2]
[421105140,1777050644432,-1561.0,0.00016438,2]
[421105141,1777050644442,-5000.0,0.00016466,2]
[421105142,1777050644455,-2208.0,0.00016581,2]
[421105143,1777050644465,-645.0,0.00016581,2]
[421105144,1777050644477,-1408.0,0.00016581,2]
[421105145,1777050644486,-739.0,0.00016581,2]
[421105146,1777050644496,-185.0,0.00016581,2]
[421105147,1777050644507,-442.0,0.00016581,2]
[421105148,1777050644516,-1716.097361,0.00016598,2]
[421105149,1777050644526,-1561.0,0.00016712,2]
[421105150,1777050644536,-5000.0,0.0001674,2]
[421105151,1777050644545,-325.3967881,0.00016749,2]
[421105152,1777050644555,-160.0,0.00016754,2]
[421105153,1777050644564,-743.2,0.00016762,2]
[421105154,1777050644575,-200.0,0.00016786,2]
[421105155,1777050644584,-200.0,0.00016786,2]
[421105156,1777050644594,-1561.0,0.00016986,2]
[421105157,1777050644603,-5000.0,0.00017014,2]
[421105158,1777050644613,-743.2,0.00017086,2]
[421105159,1777050644622,-3057.9599699,0.00017122,2]
[421105160,1777050644631,-5877.8471362,0.00017132,2]
[421105161,1777050644640,-7833.5208137,0.00017166,2]
[421105162,1777050644651,-263.74352887,0.00017191,2]
[421105163,1777050644661,-185.80901213,0.00017191,2]
[421105164,1777050644670,-2150.738,0.00017191,2]
[421105165,1777050644679,-301.202951,0.00017197,2]
[421105166,1777050644689,-8279.52392633,0.0001726,2]
[421105167,1777050644698,-1561.0,0.0001726,2]
[421105168,1777050644708,-5000.0,0.00017288,2]
[421105169,1777050644718,-150.0,0.00017401,2]
[421105170,1777050644728,-150.0,0.00017401,2]
[421105171,1777050644738,-743.2,0.0001741,2]
[421105172,1777050644747,-151.0,0.0001745,2]
[421105173,1777050644759,-151.0,0.0001745,2]
[421105174,1777050644768,-324.5868219,0.00017517,2]
[421105175,1777050644778,-1561.0,0.00017534,2]
[421105176,1777050644788,-5000.0,0.00017562,2]
[421105177,1777050644798,-1135.18361807,0.00017628,2]
[421105178,1777050644807,-3637.39619654,0.00017647,2]
[421105179,1777050644817,-682.3230978,0.0001766,2]
[421105180,1777050644826,-1311.5249728,0.0001767,2]
[421105181,1777050644837,-1747.8947536,0.00017714,2]
[421105182,1777050644847,-743.2,0.00017733,2]
[421105183,1777050644856,-2230.315306,0.00017739,2]
[421105184,1777050644866,-716.42150868,0.00017747,2]
[421105185,1777050644875,-373.43406297,0.00017797,2]
[421105186,1777050644884,-1561.0,0.00017808,2]
[421105187,1777050644894,-5000.0,0.00017836,2]
[421105188,1777050644903,-200.0,0.00017852,2]
[421105189,1777050644917,-1756.3547216,0.00017927,2]
[421105190,1777050644928,-16443.15817479,0.00018,2]
[421105191,1777050644939,-743.2,0.00018057,2]
[421105192,1777050644949,-1000.0,0.00018068,2]
[421105193,1777050644959,-791.0,0.00018068,2]
[421105194,1777050644970,-1561.0,0.00018082,2]
[421105195,1777050644981,-5000.0,0.0001811,2]
[421105196,1777050644993,-170.60035921,0.0001815,19]
[421105197,1777050645005,-892.370627,0.00018179,2]
[421105198,1777050645018,-455.8715389,0.00018272,2]
[421105199,1777050645030,-454.4486198,0.00018272,2]
[421105200,1777050645041,-325.1537298,0.00018273,2]
[421105201,1777050645051,-2312.83697232,0.00018287,2]
[421105202,1777050645062,-1561.0,0.00018356,2]
[421105203,1777050645076,-743.2,0.00018381,2]
[421105204,1777050645087,-1017.89,0.00018384,2]
[421105205,1777050645098,-233.88,0.00018527,2]
[421105206,1777050645109,-170.60035921,0.00018552,21]
[421105207,1777050645120,-1561.0,0.0001863,2]
[421105208,1777050645130,-743.2,0.00018705,2]
[421105209,1777050645141,-17917.1936763,0.000188,2]
[421105210,1777050645163,-312.203,0.000188,2]
[421105211,1777050645175,-1144.42860325,0.00018835,2]
[421105212,1777050645186,-1561.0,0.00018904,2]
[421105213,1777050645197,-157.06908098,0.0001895,5]
[421105214,1777050645209,-170.60035921,0.00018955,23]
[421105215,1777050645220,-1286.87189528,0.00019,2]
[421105216,1777050645231,-491.18026082,0.00019,2]
[421105217,1777050645243,-743.2,0.00019029,2]
[421105218,1777050645255,-4217.98,0.00019178,2]
[421105219,1777050645267,-1418.5818,0.00019178,2]
[421105220,1777050645278,-500.0,0.00019178,2]
[421105221,1777050645289,-500.0,0.00019178,2]
[421105222,1777050645299,-500.0,0.00019178,2]
[421105223,1777050645309,-1099.12,0.00019178,2]
[421105224,1777050645319,-500.0,0.00019178,2]
[421105225,1777050645330,-500.0,0.00019178,2]
[421105226,1777050645340,-1263.72,0.00019178,2]
[421105227,1777050645350,-888.35,0.00019178,2]
[421105228,1777050645360,-180.05613021,0.00019178,2]
[421105229,1777050645371,-805.61,0.00019178,2]
[421105230,1777050645381,-500.0,0.00019178,2]
[421105231,1777050645391,-1071.22,0.00019178,2]
[421105232,1777050645402,-1256.96,0.00019178,2]
[421105233,1777050645412,-601.95,0.00019178,2]
[421105234,1777050645422,-500.0,0.00019178,2]
[421105235,1777050645432,-2538.85,0.00019178,2]
[421105236,1777050645442,-500.0,0.00019178,2]
[421105237,1777050645454,-1252.18,0.00019178,2]
[421105239,1777050645465,-500.0,0.00019178,2]
[421105240,1777050645475,-1443.62,0.00019178,2]
[421105241,1777050645485,-500.0,0.00019178,2]
[421105242,1777050645495,-500.0,0.00019178,2]
[421105243,1777050645507,-500.0,0.00019178,2]
[421105244,1777050645516,-500.0,0.00019178,2]
[421105245,1777050645526,-522.83,0.00019178,2]
[421105246,1777050645536,-500.0,0.00019178,2]
[421105247,1777050645546,-500.0,0.00019178,2]
[421105248,1777050645556,-500.0,0.00019178,2]
[421105249,1777050645566,-500.0,0.00019178,2]
[421105250,1777050645576,-500.0,0.00019178,2]
[421105251,1777050645586,-551.62,0.00019178,2]
[421105252,1777050645597,-500.0,0.00019178,2]
[421105253,1777050645607,-500.0,0.00019178,2]
[421105254,1777050645616,-843.62,0.00019178,2]
[421105255,1777050645626,-907.09,0.00019178,2]
[421105256,1777050645636,-782.33,0.00019178,2]
[421105257,1777050645645,-1910.61,0.00019178,2]
[421105258,1777050645655,-1105.73,0.00019178,2]
[421105259,1777050645664,-500.0,0.00019178,2]
[421105260,1777050645674,-500.0,0.00019178,2]
[421105261,1777050645684,-500.0,0.00019178,2]
[421105262,1777050645693,-1643.48,0.00019178,2]
[421105263,1777050645703,-500.0,0.00019178,2]
[421105264,1777050645712,-1751.53,0.00019178,2]
[421105265,1777050645722,-2517.28,0.00019178,2]
[421105266,1777050645732,-500.0,0.00019178,2]
[421105267,1777050645741,-500.0,0.00019178,2]
[421105268,1777050645751,-500.0,0.00019178,2]
[421105269,1777050645762,-500.0,0.00019178,2]
[421105270,1777050645772,-500.0,0.00019178,2]
[421105271,1777050645782,-500.0,0.00019178,2]
[421105272,1777050645792,-500.0,0.00019178,2]
[421105273,1777050645801,-500.0,0.00019178,2]
[421105274,1777050645811,-500.0,0.00019178,2]
[421105275,1777050645821,-1324.94,0.00019178,2]
[421105276,1777050645830,-1171.87,0.00019178,2]
[421105277,1777050645840,-845.33,0.00019178,2]
[421105278,1777050645849,-2336.58,0.00019178,2]
[421105279,1777050645859,-1167.62,0.00019178,2]
[421105280,1777050645868,-500.0,0.00019178,2]
[421105281,1777050645882,-616.56,0.00019178,2]
[421105282,1777050645892,-500.0,0.00019178,2]
[421105283,1777050645902,-500.0,0.00019178,2]
[421105284,1777050645911,-283.89403408,0.00019178,2]
[421105285,1777050645920,-939.48,0.00019178,2]
[421105286,1777050645930,-1260.99,0.00019178,2]
[421105287,1777050645939,-500.0,0.00019178,2]
[421105288,1777050645948,-500.0,0.00019178,2]
[421105289,1777050645959,-550.1,0.00019178,2]
[421105290,1777050645968,-500.0,0.00019178,2]
[421105291,1777050645978,-182.82650423,0.00019178,2]
[421105292,1777050645987,-4745.98,0.00019178,2]
[421105293,1777050645997,-500.0,0.00019178,2]
[421105294,1777050646007,-500.0,0.00019178,2]
[421105295,1777050646016,-500.0,0.00019178,2]
[421105297,1777050646026,-500.0,0.00019178,2]
[421105298,1777050646035,-620.13,0.00019178,2]
[421105299,1777050646044,-500.0,0.00019178,2]
[421105300,1777050646054,-500.0,0.00019178,2]
[421105301,1777050646063,-500.0,0.00019178,2]
[421105302,1777050646072,-500.0,0.00019178,2]
[421105303,1777050646082,-500.0,0.00019178,2]
[421105304,1777050646092,-500.0,0.00019178,2]
[421105305,1777050646101,-500.0,0.00019178,2]
[421105306,1777050646111,-1808.97,0.00019178,2]
[421105307,1777050646120,-1588.08,0.00019178,2]
[421105308,1777050646130,-777.03,0.00019178,2]
[421105309,1777050646139,-877.3,0.00019178,2]
[421105310,1777050646149,-500.0,0.00019178,2]
[421105311,1777050646158,-1535.17,0.00019178,2]
[421105312,1777050646168,-500.0,0.00019178,2]
[421105313,1777050646178,-1023.46,0.00019178,2]
[421105314,1777050646187,-500.0,0.00019178,2]
[421105315,1777050646198,-203.32236485,0.00019178,2]
[421105316,1777050646207,-521.11,0.00019178,2]
[421105317,1777050646217,-500.0,0.00019178,2]
[421105318,1777050646227,-500.0,0.00019178,2]
[421105319,1777050646236,-500.0,0.00019178,2]